fUSD/lending_fUSD_20240331
["ID","MTS","AMOUNT","RATE_DAILY","PERIOD"]
[321155753,1711919443861,-156.31,0.000484,6]
[321155755,1711919443870,-156.31,0.000484,6]
[321155757,1711919443879,-156.31,0.000484,6]
[321155759,1711919443888,-156.31,0.000484,6]
[321155761,1711919443901,-156.31,0.000484,6]
[321155763,1711919443910,-285.05,0.00048644,2]
[321155764,1711919443919,-200.0,0.00048658,2]
[321155766,1711919443928,-664.617216,0.00048972,14]
[321155768,1711919443940,-12.18911235,0.00048972,14]
[321155770,1711919443949,-154.43108104,0.000491,2]
[321155772,1711919443959,-177.21,0.00049125,2]
[321155774,1711919443968,-154.33807269,0.00049328,30]
[321155776,1711919443977,-156.58749139,0.00049336,30]
[321155778,1711919443986,-151.0,0.00049753,120]
[321155780,1711919443996,-151.0,0.0005,120]
[321155782,1711919444004,-554.22828369,0.0005,15]
[321155784,1711919444013,-1502.09975897,0.0005,2]
[321155786,1711919444029,-3473.70842367,0.0005,2]
[321155787,1711919444038,-458.0,0.0005,8]
[321155788,1711919444046,-1010.55667894,0.0005,2]
[321155789,1711919444055,-1422.08325668,0.00050074,2]
[321155790,1711919444065,-14902.75300156,0.00050074,2]
[321155791,1711919444074,-161.63,0.00050205,2]
[321155792,1711919444084,-162.45,0.00050244,120]
[321155793,1711919444093,-161.27445176,0.00050493,60]
[321155794,1711919444102,-152.32810572,0.00050549,60]
[321155795,1711919444111,-449.43,0.00050612,120]
[321155796,1711919444119,-150.19679371,0.000509,120]
[321155797,1711919444128,-150.19679371,0.000509,120]
[321155798,1711919444137,-150.19679371,0.000509,120]
[321155799,1711919444146,-150.19679371,0.000509,120]
[321155800,1711919444155,-150.19679371,0.000509,120]
[321155801,1711919444164,-285.05,0.00050908,2]
[321155802,1711919444173,-153.26021313,0.00051025,60]
[321155803,1711919444182,-3242.0,0.0005111,2]
[321155804,1711919444191,-676.80632835,0.00051224,14]
[321155805,1711919444200,-154.43108104,0.000515,2]
[321155806,1711919444209,-151.0,0.00051507,120]
[321155807,1711919444218,-683.14147811,0.0005195,4]
[321155808,1711919444226,-150.19679371,0.00051952,120]
[321155809,1711919444236,-5008.0576384,0.00052,3]
[321155810,1711919444246,-1422.08325668,0.00052039,2]
[321155811,1711919444255,-14902.75300156,0.0005204,2]
[321155812,1711919444264,-157.63,0.0005245,2]
[321155813,1711919444272,-157.63,0.00052494,2]
[321155814,1711919444281,-157.63,0.00052537,2]
[321155815,1711919444290,-157.63,0.00052581,2]
[321155816,1711919444299,-150.0,0.00052621,7]
[321155817,1711919444308,-157.63,0.00052625,2]
[321155818,1711919444317,-157.63,0.00052668,2]
[321155819,1711919444326,-157.63,0.00052712,2]
[321155820,1711919444334,-150.0,0.00052827,7]
[321155821,1711919444343,-150.0,0.00052979,7]
[321155822,1711919444352,-162.45,0.00052984,120]
[321155823,1711919444362,-300.0,0.00053,120]
[321155824,1711919444372,-150.0,0.00053065,7]
[321155825,1711919444381,-1000.0,0.00053117,120]
[321155826,1711919444390,-285.05,0.00053172,2]
[321155827,1711919444399,-2043.0,0.00053182,117]
[321155828,1711919444408,-151.0,0.0005326,120]
[321155829,1711919444417,-244.39,0.00053352,120]
[321155830,1711919444426,-150.0,0.00053446,7]
[321155831,1711919444435,-150.0,0.00053476,7]
[321155832,1711919444445,-676.80632835,0.00053477,14]
[321155833,1711919444455,-157.040106,0.00053498,113]
[321155834,1711919444465,-157.040106,0.00053498,113]
[321155835,1711919444474,-157.040106,0.00053498,113]
[321155836,1711919444484,-157.040106,0.00053498,113]
[321155837,1711919444494,-157.040106,0.00053498,113]
[321155838,1711919444503,-157.040106,0.00053498,112]
[321155839,1711919444512,-157.040106,0.00053498,112]
[321155840,1711919444522,-157.040106,0.00053498,112]
[321155841,1711919444531,-157.040106,0.00053498,112]
[321155842,1711919444539,-157.040106,0.00053498,112]
[321155843,1711919444548,-7112.69904614,0.00053498,116]
[321155844,1711919444558,-1362.85766619,0.0005359,4]
[321155845,1711919444567,-150.0,0.00053673,7]
[321155846,1711919444575,-154.43108104,0.000539,2]
[321155847,1711919444584,-152.56590485,0.000539,59]
[321155848,1711919444594,-510.76426647,0.000539,2]
[321155849,1711919444603,-150.19679371,0.000539,120]
[321155850,1711919444612,-217.21404258,0.000539,2]
[321155851,1711919444621,-233.93627668,0.000539,52]
[321155852,1711919444630,-522.0,0.0005397,15]
[321155853,1711919444810,-522.0,0.0005398,15]
[321155854,1711919444820,-279.65,0.0005399,2]
[321155855,1711919444829,-279.65,0.0005399,2]
[321155856,1711919444838,-279.65,0.0005399,2]
[321155857,1711919444847,-279.65,0.0005399,2]
[321155858,1711919444856,-259.0,0.0005399,15]
[321155859,1711919444865,-522.0,0.0005399,15]
[321155860,1711919444874,-279.65,0.0005399,2]
[321155861,1711919444883,-279.65,0.0005399,2]
[321155862,1711919444895,-279.65,0.0005399,2]
[321155863,1711919444904,-234.040106,0.00053998,115]
[321155864,1711919444913,-234.040106,0.00053998,115]
[321155865,1711919444922,-234.040106,0.00053998,115]
[321155866,1711919444932,-234.040106,0.00053998,115]
[321155867,1711919444941,-234.040106,0.00053998,115]
[321155868,1711919444951,-234.040106,0.00053998,114]
[321155869,1711919444960,-234.040106,0.00053998,114]
[321155870,1711919444971,-234.040106,0.00053998,114]
[321155871,1711919444981,-234.040106,0.00053998,114]
[321155872,1711919444991,-234.040106,0.00053998,114]
[321155873,1711919445001,-150.0,0.00053999,30]
[321155874,1711919445010,-3000.0,0.00053999,120]
[321155875,1711919445021,-810745.23242405,0.00054,36]
[321155876,1711919445032,-3952.2351,0.00054,2]
[321155877,1711919445041,-8803.95,0.00054,120]
[321155878,1711919445050,-1122.21107754,0.00054,2]
[321155892,1711919446729,-362.253,0.00054,2]
[321155893,1711919530716,-547.16350628,0.00032999,2]
[321155895,1711919554286,-350.0,0.00033,3]
[321155896,1711919656182,-100000.0,0.00044179,30]
[321155910,1711920632374,-400.0,0.00035,3]
[321155911,1711920632384,-450.0,0.00037,3]
[321155912,1711920632393,-4671.85736844,0.00037807,4]
[321155913,1711920632403,-161.77,0.00037808,2]
[321155914,1711920632412,-154.46,0.00037808,2]
[321155915,1711920632421,-500.0,0.00039,3]
[321155916,1711920632430,-3008.7428,0.000409,2]
[321155917,1711920632439,-550.0,0.00041,3]
[321155918,1711920632448,-175.5,0.00041096,2]
[321155919,1711920632457,-153.95,0.000428,4]
[321155920,1711920632466,-153.95,0.000428,4]
[321155921,1711920632475,-153.95,0.000428,4]
[321155922,1711920632484,-153.95,0.000428,4]
[321155923,1711920632493,-153.95,0.000428,4]
[321155924,1711920632502,-153.95,0.000428,4]
[321155925,1711920632511,-153.95,0.000428,4]
[321155926,1711920632520,-153.95,0.000428,4]
[321155927,1711920632529,-153.95,0.000428,4]
[321155928,1711920632538,-153.95,0.000428,4]
[321155929,1711920632547,-153.95,0.000428,4]
[321155930,1711920632556,-153.95,0.000428,4]
[321155931,1711920632565,-153.95,0.000428,4]
[321155932,1711920632574,-161.27445176,0.00043247,30]
[321155933,1711920632583,-313.13,0.00044169,2]
[321155934,1711920632592,-3353.02,0.00044169,2]
[321155935,1711920632601,-304.74492673,0.00044169,2]
[321155936,1711920632611,-718.45983399,0.00044177,4]
[321155937,1711920632620,-465.82110627,0.00044178,2]
[321155938,1711920632630,-91987.78410756,0.00044179,30]
[321155939,1711920632639,-499.99,0.00044179,2]
[321155940,1711920632648,-639.94604832,0.00044179,4]
[321155941,1711920632658,-381.67129613,0.00044179,2]
[321155942,1711920632667,-285.813,0.00044179,2]
[321155943,1711920632677,-432.8575206,0.00044179,4]
[321155944,1711920632686,-1385.25927573,0.00044179,4]
[321155945,1711920632695,-154.46,0.00044892,2]
[321155946,1711920632704,-1822.86730875,0.00045,14]
[321155947,1711920632713,-154.3380727,0.00046072,30]
[321155948,1711920632722,-162.03426665,0.00046442,30]
[321155949,1711920632732,-328.48,0.00047757,2]
[321155950,1711920632742,-151.0,0.00048,120]
[321155951,1711920632751,-153.26021313,0.00048118,30]
[321155952,1711920632760,-153.95,0.000484,6]
[321155953,1711920632769,-153.95,0.000484,6]
[321155954,1711920632778,-153.95,0.000484,6]
[321155955,1711920632787,-153.95,0.000484,6]
[321155956,1711920632797,-153.95,0.000484,6]
[321155957,1711920632806,-153.95,0.000484,6]
[321155958,1711920632816,-153.95,0.000484,6]
[321155959,1711920632825,-153.95,0.000484,6]
[321155961,1711920632835,-153.95,0.000484,6]
[321155962,1711920632845,-153.95,0.000484,6]
[321155963,1711920632854,-153.95,0.000484,6]
[321155964,1711920632863,-153.95,0.000484,6]
[321155965,1711920632873,-153.95,0.000484,6]
[321155966,1711920632882,-250.0,0.00048873,120]
[321155967,1711920632892,-150.05,0.00049194,2]
[321155968,1711920632901,-159.0,0.00049301,15]
[321155969,1711920632910,-232.55,0.00049371,2]
[321155970,1711920632919,-653.95,0.00049384,2]
[321155971,1711920632928,-812.89,0.00049415,120]
[321155972,1711920632937,-23890.0,0.00049429,2]
[321155973,1711920632946,-374.52,0.00049565,120]
[321155974,1711920632955,-1360.38,0.00049606,2]
[321155975,1711920632964,-606.83,0.00049606,2]
[321155976,1711920632973,-500.0,0.00049619,2]
[321155977,1711920632983,-1852.42,0.00049665,2]
[321155978,1711920632993,-150.0,0.00049736,2]
[321155979,1711920633002,-1000.0,0.0005,2]
[321155980,1711920633011,-1000.0,0.0005,2]
[321155981,1711920633021,-151.0,0.0005,120]
[321155982,1711920633030,-328.48,0.00050021,2]
[321155983,1711920633040,-155.98,0.00050109,2]
[321155984,1711920633049,-200.0,0.00050158,2]
[321155985,1711920633058,-217.4,0.00050188,2]
[321155986,1711920633067,-158.18,0.00050316,2]
[321155987,1711920633076,-158.18,0.00050336,2]
[321155988,1711920633085,-158.18,0.00050355,2]
[321155989,1711920633094,-158.18,0.00050374,2]
[321155990,1711920633103,-158.18,0.00050394,2]
[321155991,1711920633111,-250.0,0.00050402,120]
[321155992,1711920633120,-158.18,0.00050413,2]
[321155993,1711920633130,-158.18,0.00050432,2]
[321155994,1711920633139,-158.18,0.00050452,2]
[321155995,1711920633148,-158.18,0.00050471,2]
[321155996,1711920633158,-158.18,0.0005049,2]
[321155997,1711920633166,-158.18,0.0005051,2]
[321155998,1711920633175,-158.18,0.00050529,2]
[321155999,1711920633185,-158.18,0.00050548,2]
[321156000,1711920633194,-1000.0,0.00050559,120]
[321156001,1711920633203,-158.18,0.00050568,2]
[321156002,1711920633213,-169.01,0.00050576,2]
[321156003,1711920633222,-155.98,0.00050762,2]
[321156004,1711920633231,-1000.0,0.00051,31]
[321156005,1711920633240,-1000.0,0.00051,31]
[321156006,1711920633249,-1000.0,0.00051,3]
[321156007,1711920633258,-155.98,0.00051415,2]
[321156008,1711920633268,-2043.0,0.00051658,117]
[321156009,1711920633279,-150.0,0.00051788,7]
[321156010,1711920633289,-154.46,0.00051976,2]
[321156011,1711920633298,-1000.0,0.00052,32]
[321156012,1711920633306,-1000.0,0.00052,32]
[321156013,1711920633315,-151.0,0.00052,120]
[321156014,1711920633326,-159.0,0.00052041,120]
[321156015,1711920633335,-155.98,0.00052067,2]
[321156016,1711920633345,-153.26021313,0.00052104,60]
[321156017,1711920633355,-328.48,0.00052285,2]
[321156018,1711920633364,-1360.38,0.00052345,2]
[321156019,1711920633373,-150.0,0.00052483,7]
[321156020,1711920633382,-155.98,0.0005272,2]
[321156021,1711920633390,-150.0,0.00052732,7]
[321156022,1711920633399,-2864.63869857,0.000529,2]
[321156023,1711920633409,-1000.0,0.00053,33]
[321156024,1711920633418,-1015.0,0.00053,33]
[321156025,1711920633427,-150.0,0.00053214,7]
[321156026,1711920633436,-1000.0,0.000537,2]
[321156027,1711920633445,-2184.1404,0.000537,2]
[321156028,1711920633454,-205.0,0.000538,2]
[321156029,1711920633463,-4011.0989,0.000538,2]
[321156030,1711920633473,-39856.13,0.000538,2]
[321156031,1711920633482,-169.20158214,0.000538,14]
[321156032,1711920633492,-150.0,0.00053813,7]
[321156033,1711920633501,-159.06,0.00053889,2]
[321156034,1711920633510,-159.06,0.0005389,2]
[321156035,1711920633520,-170.18,0.00053894,2]
[321156036,1711920633529,-68949.61390139,0.00053899,2]
[321156037,1711920633542,-1457.68,0.00053899,2]
[321156038,1711920633553,-174592.70609861,0.00053899,2]
[321156039,1711920633562,-343.4754,0.000539,3]
[321156040,1711920633572,-1000.0,0.000539,2]
[321156041,1711920633582,-100000.0,0.000539,2]
[321156042,1711920633591,-988.72187163,0.000539,2]
[321156043,1711920633661,-297.90292434,0.000539,2]
[321156044,1711920633673,-10357.80438685,0.000539,2]
[321156045,1711920633683,-174.04286069,0.000539,31]
[321156046,1711920633848,-150.0,0.0005392,7]
[321156047,1711920633858,-150.0,0.00053958,7]
[321156048,1711920633867,-366.0,0.0005397,15]
[321156049,1711920633877,-366.0,0.0005398,15]
[321156050,1711920633886,-366.0,0.0005399,15]
[321156051,1711920633895,-289.04566703,0.0005399,2]
[321156052,1711920633905,-200.0,0.00053998,2]
[321156053,1711920633914,-400.0,0.00053998,2]
[321156054,1711920633923,-859.57814569,0.00053999,11]
[321156055,1711920633932,-360.94829847,0.00053999,4]
[321156056,1711920633942,-201.01174241,0.00053999,2]
[321156057,1711920633951,-2266.30859194,0.00053999,2]
[321156058,1711920633961,-316.5496069,0.00054,30]
[321156059,1711920633973,-9244.3813195,0.00054,30]
[321156060,1711920633984,-5591.152029,0.00054,30]
[321156068,1711920638568,-500.0,0.00049165,2]
[321156069,1711920638577,-29194.57150286,0.00054,30]
[321156070,1711920638587,-838.06132381,0.00054,2]
[321156071,1711920638596,-1500.0,0.00054,120]
[321156072,1711920638605,-801.3061,0.00054,68]
[321156073,1711920638614,-151.0,0.00054,120]
[321156074,1711920638623,-150.0,0.00054081,7]
[321156075,1711920638632,-153.95,0.000541,7]
[321156076,1711920638641,-153.95,0.000541,7]
[321156077,1711920638650,-153.95,0.000541,7]
[321156078,1711920638660,-153.95,0.000541,7]
[321156079,1711920638670,-153.95,0.000541,7]
[321156080,1711920638679,-153.95,0.000541,7]
[321156081,1711920638690,-153.95,0.000541,7]
[321156082,1711920638699,-153.95,0.000541,7]
[321156083,1711920638707,-153.95,0.000541,7]
[321156084,1711920638718,-153.95,0.000541,7]
[321156085,1711920638728,-153.95,0.000541,7]
[321156086,1711920638738,-153.95,0.000541,7]
[321156087,1711920638747,-153.95,0.000541,7]
[321156088,1711920638756,-2864.6386985,0.00054122,2]
[321156089,1711920638766,-150.0,0.00054186,7]
[321156090,1711920638774,-223.48801121,0.00054208,3]
[321156091,1711920638784,-1390.83673626,0.00054292,2]
[321156092,1711920638793,-168.63,0.00054329,2]
[321156093,1711920638802,-150.0,0.00054331,7]
[321156094,1711920638811,-150.0,0.0005436,7]
[321156095,1711920638820,-199.06141024,0.00054426,7]
[321156096,1711920638830,-151.0,0.00054438,120]
[321156097,1711920638839,-150.0,0.00054501,7]
[321156098,1711920638847,-150.0,0.00054504,7]
[321156099,1711920638857,-328.48,0.00054549,2]
[321156100,1711920638866,-150.0,0.00054559,7]
[321156101,1711920638875,-150.0,0.00054574,7]
[321156102,1711920638884,-168.22140587,0.00054584,2]
[321156103,1711920638893,-973.79954154,0.00054586,2]
[321156105,1711920638931,-94.6414088,0.00054586,2]
[321156106,1711920638940,-169.20158208,0.00054657,14]
[321156107,1711920638950,-121.06014657,0.00054659,15]
[321156108,1711920638962,-77.93985343,0.00054659,15]
[321156109,1711920638971,-150.0,0.00054665,7]
[321156110,1711920638979,-199.0,0.00054669,15]
[321156111,1711920638988,-159.06,0.00054676,2]
[321156112,1711920638997,-142.49806917,0.00054676,2]
[321156123,1711920639112,-16.56193083,0.00054676,2]
[321156125,1711920639121,-5.09456665,0.00054676,2]
[321156276,1711920640563,-153.96543335,0.00054676,2]
[321156278,1711920640573,-159.06,0.00054676,2]
[321156280,1711920640582,-159.06,0.00054676,2]
[321156282,1711920640591,-289.04566703,0.00054676,2]
[321156284,1711920640600,-298.71277744,0.00054678,2]
[321156286,1711920640609,-199.0,0.00054679,15]
[321156288,1711920640618,-1002.9332424,0.00054681,2]
[321156290,1711920640627,-225.90327232,0.00054681,2]
[321156422,1711920643488,-23116.49453771,0.00054681,2]
[321156423,1711920643499,-3001.81970509,0.00054681,2]
[321156434,1711920646639,-433.97771843,0.00054428,120]
[321156435,1711920694157,-154.95,0.000428,4]
[321156436,1711920694181,-154.95,0.000428,4]
[321156437,1711920694384,-154.95,0.000428,4]
[321156438,1711920694409,-154.95,0.000428,4]
[321156439,1711920694431,-154.95,0.000428,4]
[321156440,1711920694454,-154.95,0.000428,4]
[321156441,1711920694477,-154.95,0.000428,4]
[321156442,1711920694501,-154.95,0.000428,4]
[321156443,1711920694524,-154.95,0.000428,4]
[321156444,1711920694547,-154.95,0.000484,6]
[321156445,1711920694572,-154.95,0.000484,6]
[321156446,1711920694596,-154.95,0.000484,6]
[321156447,1711920694620,-154.95,0.000484,6]
[321156448,1711920694643,-154.95,0.000484,6]
[321156449,1711920694668,-154.95,0.000484,6]
[321156450,1711920694691,-154.95,0.000484,6]
[321156451,1711920694716,-154.95,0.000484,6]
[321156452,1711920694741,-154.95,0.000484,6]
[321156453,1711920694764,-652.97349196,0.00049589,4]
[321156454,1711920694785,-13592.6023,0.0004959,2]
[321156455,1711920694808,-406.65156577,0.00053041,4]
[321156456,1711920694833,-154.95,0.000541,7]
[321156457,1711920694855,-154.95,0.000541,7]
[321156458,1711920694878,-154.95,0.000541,7]
[321156459,1711920694902,-154.95,0.000541,7]
[321156460,1711920694925,-154.95,0.000541,7]
[321156461,1711920694949,-154.95,0.000541,7]
[321156462,1711920694973,-154.95,0.000541,7]
[321156463,1711920694997,-154.95,0.000541,7]
[321156464,1711920695021,-154.95,0.000541,7]
[321156465,1711920695044,-31985.28665731,0.0005414,2]
[321156466,1711920695068,-490.677752,0.00054207,4]
[321156467,1711920695092,-201.13921008,0.00054208,3]
[321156468,1711920695114,-844.13789073,0.00054328,120]
[321156469,1711920695139,-367.02228157,0.00054428,120]
[321156470,1711920695161,-358.0,0.00054428,120]
[321156471,1711920695183,-1139.0,0.00054428,120]
[321156472,1711920695206,-1461.0,0.00054428,120]
[321156473,1711920695229,-375.12,0.00054428,120]
[321156474,1711920695254,-844.13789071,0.00054455,120]
[321156475,1711920695277,-13235.945372,0.000545,2]
[321156476,1711920695303,-336.62957728,0.0005452,120]
[321156477,1711920695327,-268.0,0.00054656,15]
[321156478,1711920695351,-150.5,0.00054656,15]
[321156479,1711920695379,-268.0,0.00054666,15]
[321156480,1711920695403,-150.5,0.00054666,15]
[321156481,1711920695426,-268.0,0.00054676,15]
[321156482,1711920695449,-150.5,0.00054676,15]
[321156483,1711920695471,-184.13623079,0.00054679,4]
[321156484,1711920695494,-196.26787983,0.00054679,4]
[321156485,1711920695517,-211.81970119,0.00054679,4]
[321156486,1711920695539,-155.14111248,0.00054679,4]
[321156487,1711920695563,-211.29076337,0.00054679,4]
[321156488,1711920695586,-349.71152649,0.00054679,4]
[321156489,1711920695610,-409.57672825,0.00054679,4]
[321156490,1711920695633,-283.75527799,0.00054679,4]
[321156491,1711920695655,-196.21725431,0.00054679,4]
[321156492,1711920695678,-263.34280345,0.00054679,4]
[321156493,1711920695701,-308.48334315,0.00054679,4]
[321156494,1711920695723,-160.1119424,0.0005468,4]
[321156495,1711920695747,-155.0,0.0005468,4]
[321156496,1711920695771,-155.0,0.0005468,4]
[321156497,1711920695796,-30483.67144689,0.00054681,2]
[321156498,1711920792926,224.20800371,0.00024,2]
[321156499,1711920817311,291.58831734,0.00024,2]
[321156500,1711920819190,1465.71922469,0.00024,2]
[321156501,1711920822881,267.10379752,0.00024,2]
[321156502,1711920824860,1131.15465862,0.00024,2]
[321156503,1711920825640,2203.70441639,0.00024,2]
[321156504,1711920835302,439.13316844,0.00024,2]
[321156505,1711920837674,952.94763646,0.00024,2]
[321156506,1711920840869,1131.15465862,0.00024,2]
[321156507,1711920847526,2291.53762947,0.00024,2]
[321156508,1711920851238,950.11778517,0.000228,2]
[321156509,1711920862863,1128.12098479,0.00024,2]
[321156510,1711920867191,950.11778517,0.000228,2]
[321156511,1711920887177,948.81964446,0.000228,2]
[321156535,1711921742493,-177.16517816,0.00032898,4]
[321156536,1711921742519,-571.35180546,0.00032898,4]
[321156537,1711921742544,-325.4309,0.00032899,120]
[321156538,1711921742571,-350.0,0.00033,3]
[321156539,1711921742601,-400.0,0.00035,3]
[321156540,1711921742628,-450.0,0.00037,3]
[321156541,1711921742654,-153.77,0.00037808,2]
[321156542,1711921742680,-161.63,0.00037808,2]
[321156543,1711921742706,-500.0,0.00039,3]
[321156544,1711921742732,-150.0,0.00039999,5]
[321156545,1711921742757,-15760.65211638,0.0004,30]
[321156568,1711921831609,-162.60927417,0.000399,2]
[321156569,1711921831619,-405.60790938,0.00039978,4]
[321156570,1711921831628,-216.69455299,0.00039998,4]
[321156571,1711921831637,-155.0,0.00039998,4]
[321156572,1711921831646,-231.30807783,0.00039999,4]
[321156573,1711921831656,-169.76640588,0.0004,30]
[321156574,1711921831711,-672.3424,0.0004,30]
[321156575,1711921831726,-461.6,0.0004,30]
[321156576,1711921831737,-2675.47495932,0.0004,30]
[321156577,1711921831748,-1272.42049758,0.0004,30]
[321156578,1711921831783,-78987.74362084,0.0004,30]
[321156579,1711921831792,-427.84996,0.0004,2]
[321156580,1711921831802,-712.36928259,0.00040129,2]
[321156581,1711921831810,-550.0,0.00041,3]
[321156582,1711921831819,-973.4553725,0.00041011,4]
[321156583,1711921831829,-152.01,0.000428,4]
[321156584,1711921831838,-152.01,0.000428,4]
[321156585,1711921831847,-152.01,0.000428,4]
[321156586,1711921831856,-152.01,0.000428,4]
[321156587,1711921831866,-152.01,0.000428,4]
[321156588,1711921831876,-152.01,0.000428,4]
[321156589,1711921831885,-152.01,0.000428,4]
[321156590,1711921831894,-152.01,0.000428,4]
[321156591,1711921831903,-152.01,0.000428,4]
[321156592,1711921831911,-152.01,0.000428,4]
[321156593,1711921831920,-603.26703052,0.00043,4]
[321156594,1711921831930,-600.0,0.00043,3]
[321156595,1711921831939,-611.4,0.00043,2]
[321156596,1711921831948,-155.74528115,0.00043076,30]
[321156597,1711921831958,-650.0,0.00045,3]
[321156598,1711921831967,-156.65046782,0.00045276,30]
[321156600,1711921831976,-162.60927417,0.00047243,2]
[321156601,1711921831985,-153.77,0.00047726,2]
[321156602,1711921831995,-150.99,0.00047726,2]
[321156603,1711921832004,-331.88,0.00047907,2]
[321156604,1711921832014,-152.01,0.000484,6]
[321156605,1711921832023,-152.01,0.000484,6]
[321156606,1711921832032,-152.01,0.000484,6]
[321156607,1711921832041,-152.01,0.000484,6]
[321156608,1711921832050,-152.01,0.000484,6]
[321156609,1711921832059,-152.01,0.000484,6]
[321156610,1711921832068,-152.01,0.000484,6]
[321156611,1711921832078,-152.01,0.000484,6]
[321156612,1711921832087,-152.01,0.000484,6]
[321156613,1711921832096,-152.01,0.000484,6]
[321156614,1711921832106,-500.0,0.0004899,2]
[321156615,1711921832115,-1166.5,0.00049428,2]
[321156616,1711921832125,-194.89,0.00049483,120]
[321156617,1711921832133,-312.1,0.00049545,120]
[321156618,1711921832143,-13592.6023,0.0004959,2]
[321156619,1711921832152,-154.01,0.00049783,120]
[321156620,1711921832161,-169.01,0.0004994,2]
[321156621,1711921832171,-200.0,0.00049972,2]
[321156622,1711921832180,-331.88,0.00050171,2]
[321156623,1711921832189,-2433.91928454,0.00050301,2]
[321156624,1711921832198,-23391.28059077,0.00050301,2]
[321156625,1711921832208,-1000.0,0.00050317,120]
[321156626,1711921832217,-35324.0,0.00050356,2]
[321156627,1711921832227,-379.3,0.00050401,2]
[321156628,1711921832236,-150.19679371,0.000509,120]
[321156629,1711921832245,-192.35,0.00051048,2]
[321156630,1711921832254,-2433.91928446,0.00051812,2]
[321156631,1711921832264,-23391.28059068,0.00051812,2]
[321156632,1711921832273,-155.0,0.00051947,120]
[321156633,1711921832282,-1000.0,0.00052055,30]
[321156634,1711921832291,-1166.5,0.00052168,2]
[321156635,1711921832300,-194.89,0.00052223,120]
[321156636,1711921832309,-150.05,0.00052273,120]
[321156637,1711921832318,-331.88,0.00052435,2]
[321156638,1711921832328,-500.0,0.00052493,120]
[321156639,1711921832337,-677.4,0.00052621,120]
[321156640,1711921832347,-150.0,0.00052819,7]
[321156641,1711921832357,-150.0,0.00052823,7]
[321156642,1711921832371,-154.59,0.0005298,2]
[321156643,1711921832380,-1000.0,0.00052999,120]
[321156644,1711921832390,-406.65156577,0.00053041,4]
[321156645,1711921832399,-190.21,0.00053124,2]
[321156646,1711921832409,-2433.91928446,0.00053323,2]
[321156647,1711921832418,-23391.28059068,0.00053323,2]
[321156648,1711921832427,-54075.6588,0.00053587,2]
[321156649,1711921832437,-2849.5654,0.00053587,2]
[321156650,1711921832446,-154.59,0.0005367,2]
[321156651,1711921832455,-522.35489817,0.00053686,2]
[321156652,1711921832465,-1000.0,0.00053689,2]
[321156653,1711921832474,-150.0,0.00053717,7]
[321156654,1711921832483,-1000.0,0.00053999,120]
[321156655,1711921832493,-5587.51782305,0.00054,30]
[321156656,1711921832502,-1181.88,0.00054,120]
[321156657,1711921832511,-2627.36331142,0.00054002,120]
[321156658,1711921832520,-150.0,0.00054025,7]
[321156659,1711921832530,-153.96410708,0.00054062,60]